bitfinex-derivatives/quotes_BTCF0:USTF0_20250913
["timestamp","ask_amount","ask_price","bid_price","bid_amount"]
[1757774892107,0.42994574,115920.0,115910.0,0.79004]
[1757774892503,0.03656,115910.0,115900.0,0.3608]
[1757774892705,0.36742175,115910.0,115900.0,1.15084]
[1757774892904,0.36092145,115910.0,115900.0,1.15084]
[1757774893704,0.36092145,115910.0,115900.0,1.15284]
[1757774894207,0.39195822,115910.0,115900.0,1.15284]
[1757774894411,0.39195822,115910.0,115900.0,1.15384]
[1757774894608,0.40051664,115910.0,115900.0,1.15384]
[1757774895197,0.40051664,115910.0,115900.0,1.15284]
[1757774895704,0.36947987,115910.0,115900.0,1.15284]
[1757774895910,0.37205987,115910.0,115900.0,1.15284]
[1757774896112,0.32548685,115910.0,115900.0,1.15284]
[1757774896311,0.37202699,115910.0,115900.0,1.15284]
[1757774897510,0.37202699,115910.0,115900.0,1.15384]
[1757774899302,0.37202699,115910.0,115900.0,0.003]
[1757774899509,0.32548685,115910.0,115900.0,0.793]
[1757774899708,0.38750721,115910.0,115900.0,0.793]
[1757774900905,0.99830721,115910.0,115900.0,0.793]
[1757774901103,0.99830721,115910.0,115900.0,0.792]
[1757774901301,0.99830721,115910.0,115900.0,0.002]
[1757774901514,0.03664,115890.0,115880.0,0.3608]
[1757774901706,0.15205374,115890.0,115880.0,1.1508]
[1757774901904,0.34542882,115890.0,115880.0,1.1508]
[1757774902903,0.34542882,115890.0,115880.0,1.1538]
[1757774903102,0.3919294,115890.0,115880.0,0.3638]
[1757774903309,0.34542882,115890.0,115880.0,1.1538]
[1757774904803,0.36534186,115890.0,115880.0,0.3638]
[1757774905004,0.28092851,115890.0,115880.0,1.1538]
[1757774905212,0.11210181,115890.0,115880.0,1.23821335]
[1757774905406,0.19651516,115890.0,115880.0,1.23821335]
[1757774906911,0.28092851,115890.0,115880.0,1.23821335]
[1757774908810,0.28092851,115890.0,115880.0,1.1538]
[1757774909011,0.28092851,115890.0,115880.0,1.23821335]
[1757774909205,0.28092851,115890.0,115880.0,1.1538]
[1757774909409,0.28092851,115890.0,115880.0,1.23821335]
[1757774911306,0.28092851,115890.0,115880.0,1.1538]
[1757774911506,0.28092851,115890.0,115880.0,1.23821335]
[1757774912715,0.28092851,115890.0,115880.0,1.1538]
[1757774912917,0.28092851,115890.0,115880.0,1.23821335]
[1757774916412,0.28092851,115890.0,115880.0,1.1538]
[1757774916617,0.36534186,115890.0,115880.0,1.23821335]
[1757774916815,0.36792186,115890.0,115880.0,1.1538]
[1757774917114,0.36792186,115890.0,115880.0,1.23821335]
[1757774917620,0.36792186,115890.0,115880.0,1.1528]
[1757774919114,0.36792186,115890.0,115880.0,1.1538]
[1757774919915,0.36792186,115890.0,115880.0,1.23821335]
[1757774921718,0.11468181,115890.0,115880.0,1.23821335]
[1757774921921,0.36792186,115890.0,115880.0,1.23821335]
[1757774922115,0.41442244,115890.0,115880.0,1.23821335]
[1757774923523,0.41442244,115890.0,115880.0,1.1538]
[1757774923819,0.41442244,115890.0,115880.0,1.23821335]
[1757774924219,0.38342205,115890.0,115880.0,1.23821335]
[1757774926815,0.38342205,115890.0,115880.0,1.1538]
[1757774927014,0.38342205,115890.0,115880.0,0.3638]
[1757774927223,0.38342205,115890.0,115880.0,1.15368]
[1757774927921,0.38342205,115890.0,115880.0,0.3638]
[1757774928125,0.38342205,115890.0,115880.0,1.15364]
[1757774928822,0.38342205,115890.0,115880.0,0.3638]
[1757774929320,1.00974183,115890.0,115880.0,0.79184]
[1757774930121,1.00974183,115890.0,115880.0,0.78984]
[1757774930521,0.98177704,115890.0,115880.0,0.78984]
[1757774933529,0.75650178,115890.0,115880.0,0.78984]
[1757774933729,0.98177704,115890.0,115880.0,0.78984]
[1757774940844,0.62097704,115890.0,115880.0,0.78984]
[1757774942740,0.25833941,115890.0,115880.0,1.15064]
[1757774944140,0.19631905,115890.0,115880.0,1.15064]
[1757774945246,0.24286452,115890.0,115880.0,1.15064]
[1757774947946,0.24286452,115890.0,115880.0,0.3608]
[1757774948340,0.24286452,115890.0,115880.0,1.15048]
[1757774949546,0.24286452,115890.0,115880.0,1.15044]
[1757774951741,0.25833941,115890.0,115880.0,1.15044]
[1757774953549,0.19631905,115890.0,115880.0,1.15044]
[1757774958047,0.24289959,115890.0,115880.0,1.15044]
[1757774966246,0.13026196,115890.0,115880.0,1.15044]
[1757774966449,0.24289959,115890.0,115880.0,1.15044]
[1757774966854,0.22298655,115890.0,115880.0,1.15044]
[1757774967153,0.17640601,115890.0,115880.0,1.15044]
[1757774968544,0.23842637,115890.0,115880.0,1.15044]
[1757774970557,0.17640601,115890.0,115880.0,1.15044]
[1757774972058,0.16512299,115890.0,115880.0,1.15044]
[1757774972258,0.06376838,115890.0,115880.0,1.15044]
[1757774972559,0.16512299,115890.0,115880.0,1.15044]
[1757774976160,0.06376838,115890.0,115880.0,1.15044]
[1757774976562,0.06376838,115890.0,115880.0,1.61259461]
[1757774976763,0.11037012,115890.0,115880.0,1.61259461]
[1757774977462,0.11037012,115890.0,115880.0,1.51124]
[1757774977850,0.11037012,115890.0,115880.0,1.51324]
[1757774978258,0.16512299,115890.0,115880.0,1.51324]
[1757774980058,0.21170441,115890.0,115880.0,1.51324]
[1757774988065,0.21170441,115890.0,115880.0,1.51272]
[1757774988257,0.21170441,115890.0,115880.0,0.7236]
[1757774988461,0.21170441,115890.0,115880.0,1.51272]
[1757774988665,0.16512299,115890.0,115880.0,1.51272]
[1757774989473,0.21168933,115890.0,115880.0,1.51272]
[1757774989970,0.16512299,115890.0,115880.0,1.51272]
[1757774990471,0.21168947,115890.0,115880.0,1.51272]
[1757774992471,0.19616042,115890.0,115880.0,1.51272]
[1757774993771,0.19616042,115890.0,115880.0,1.61406725]
[1757774995275,0.21168211,115890.0,115880.0,1.61406725]
[1757774997979,0.21168211,115890.0,115880.0,1.51272]
[1757775001479,0.11033486,115890.0,115880.0,1.51272]
[1757775001677,0.21168211,115890.0,115880.0,1.51272]
[1757775001877,0.21168211,115890.0,115880.0,1.61406725]
[1757775002682,0.11033486,115890.0,115880.0,1.61406725]
[1757775002880,0.21168211,115890.0,115880.0,1.61406725]
[1757775003377,0.16511563,115890.0,115880.0,1.61406725]
[1757775005081,0.21170117,115890.0,115880.0,1.61406725]
[1757775006079,0.21170117,115890.0,115880.0,1.51272]
[1757775006280,0.21170117,115890.0,115880.0,1.61406725]
[1757775012490,0.22713599,115890.0,115880.0,1.61406725]
[1757775013087,0.22713599,115890.0,115880.0,1.61362725]
[1757775013287,0.22713599,115890.0,115880.0,1.51228]
[1757775013897,0.22713599,115890.0,115880.0,0.7236]
[1757775014093,0.16511563,115890.0,115880.0,0.7236]
[1757775014295,0.16511563,115890.0,115880.0,1.51224]
[1757775016896,0.16511563,115890.0,115880.0,1.50224]
[1757775017197,0.21171569,115890.0,115880.0,1.50224]
[1757775017697,0.21171569,115890.0,115880.0,1.60358725]
[1757775021302,0.21171569,115890.0,115880.0,1.50224]
[1757775021502,0.21171569,115890.0,115880.0,1.60358725]
[1757775022500,0.21171569,115890.0,115880.0,1.50224]
[1757775023899,0.16511563,115890.0,115880.0,1.60358725]
[1757775025404,0.06376838,115890.0,115880.0,1.60358725]
[1757775025602,0.16511563,115890.0,115880.0,1.60358725]
[1757775026001,0.16511563,115890.0,115880.0,1.60338725]
[1757775026805,0.22713599,115890.0,115880.0,1.60338725]
[1757775027800,0.22713599,115890.0,115880.0,0.7136]
[1757775028104,0.22713599,115890.0,115880.0,1.50204]
[1757775028307,0.22723583,115890.0,115880.0,1.50204]
[1757775030004,0.12588858,115890.0,115880.0,1.60338725]
[1757775030206,0.22723583,115890.0,115880.0,1.60338725]
[1757775031103,0.16521547,115890.0,115880.0,1.60338725]
[1757775032501,0.04102822,115890.0,115880.0,1.60338725]
[1757775032705,0.04102822,115890.0,115880.0,1.7047345]
[1757775032904,0.06298111,115890.0,115880.0,1.9547345]
[1757775033215,0.0940376,115890.0,115880.0,1.9547345]
[1757775033408,0.11868582,115890.0,115880.0,1.9547345]
[1757775035006,0.07208471,115890.0,115880.0,1.9547345]
[1757775036702,0.04102822,115890.0,115880.0,1.9547345]
[1757775039317,0.04102822,115890.0,115880.0,1.7047345]
[1757775042919,0.04089595,115890.0,115880.0,1.7047345]
[1757775046426,0.04089595,115890.0,115880.0,1.9547345]
[1757775048424,0.04089595,115890.0,115880.0,1.75204]
[1757775048722,0.04089595,115890.0,115880.0,1.9547345]
[1757775050421,0.02709595,115890.0,115880.0,1.9547345]
[1757775051925,0.02709595,115890.0,115880.0,1.96336864]
[1757775052330,0.02709595,115890.0,115880.0,1.8619789]
[1757775053931,0.02709595,115890.0,115880.0,1.8719789]
[1757775064138,0.02709595,115890.0,115880.0,1.0835389]
[1757775064729,0.02709595,115890.0,115880.0,1.8712589]
[1757775066345,0.02709595,115890.0,115880.0,1.0835389]
[1757775066547,0.02709595,115890.0,115880.0,1.8712189]
[1757775068045,0.03994595,115890.0,115880.0,1.8712189]
[1757775069245,0.03994595,115890.0,115880.0,1.0835389]
[1757775069447,0.03994595,115890.0,115880.0,1.8711789]
[1757775071244,0.03994595,115890.0,115880.0,1.07490476]
[1757775071547,0.03994595,115890.0,115880.0,1.86250476]
[1757775072253,0.03994595,115890.0,115880.0,1.07490476]
[1757775073647,0.03994595,115890.0,115880.0,1.86246476]
[1757775073948,0.03997613,115890.0,115880.0,1.86246476]
[1757775085854,0.03997613,115890.0,115880.0,1.86226476]
[1757775088060,0.03997613,115890.0,115880.0,1.07490476]
[1757775088248,0.03997613,115890.0,115880.0,1.86218476]
[1757775089861,0.03997613,115890.0,115880.0,1.76088]
[1757775090052,0.03997613,115890.0,115880.0,1.86218476]
[1757775091159,0.03997613,115890.0,115880.0,1.76088]
[1757775091362,0.03997613,115890.0,115880.0,1.86218476]
[1757775092059,0.04001613,115890.0,115880.0,1.86218476]
[1757775092361,0.04001613,115890.0,115880.0,1.87982781]
[1757775092660,0.04000909,115890.0,115880.0,1.87982781]
[1757775099255,0.04000909,115890.0,115880.0,1.62982781]
[1757775102557,0.01547,115890.0,115880.0,1.62982781]
[1757775103261,0.03999594,115890.0,115880.0,1.52852305]
[1757775103459,0.03999594,115890.0,115880.0,1.62982781]
[1757775104660,0.3913007,115890.0,115880.0,0.74124305]
[1757775104864,0.4134107,115890.0,115880.0,0.74120159]
[1757775105166,0.4134107,115890.0,115880.0,1.52820159]
[1757775105167,0.4444686,115890.0,115880.0,1.52820159]
[1757775106064,0.34316384,115890.0,115880.0,1.52820159]
[1757775106266,0.4444686,115890.0,115880.0,1.52820159]
[1757775107766,0.34316384,115890.0,115880.0,1.52820159]
[1757775108170,0.4444686,115890.0,115880.0,1.52820159]
[1757775108873,0.4444686,115890.0,115880.0,0.74120159]
[1757775109167,0.4444686,115890.0,115880.0,1.52816159]
[1757775112169,0.4444686,115890.0,115880.0,0.74120159]
[1757775112472,0.4444686,115890.0,115880.0,1.51048]
[1757775112663,0.4444686,115890.0,115880.0,1.52772902]
[1757775114469,0.44451629,115890.0,115880.0,1.52772902]
[1757775117262,0.44451629,115890.0,115880.0,1.62908147]
[1757775118374,0.19451629,115890.0,115880.0,1.62908147]
[1757775121578,0.19451629,115890.0,115880.0,1.52772902]
[1757775121879,0.19451629,115890.0,115880.0,1.62908147]
[1757775122780,0.09316384,115890.0,115880.0,1.62908147]
[1757775122969,0.19451629,115890.0,115880.0,1.62908147]
[1757775125275,0.19451629,115890.0,115880.0,1.52772902]
[1757775125481,0.19451629,115890.0,115880.0,1.52756902]
[1757775125874,0.24110315,115890.0,115880.0,1.52756902]
[1757775128788,0.24110315,115890.0,115880.0,1.5276693]
[1757775129389,0.19451629,115890.0,115880.0,1.5276293]
[1757775130889,0.24110315,115890.0,115880.0,1.5276293]
[1757775134391,0.21004525,115890.0,115880.0,1.5276293]
[1757775134592,0.21004525,115890.0,115880.0,1.51028]
[1757775136092,0.21003583,115890.0,115880.0,1.14948]
[1757775136993,0.21003583,115890.0,115880.0,1.1669887]
[1757775137493,0.21003583,115890.0,115880.0,1.16706553]
[1757775139692,0.21003583,115890.0,115880.0,1.14948]
[1757775139992,0.21003583,115890.0,115880.0,1.16664295]
[1757775140994,0.21003583,115890.0,115880.0,1.16664636]
[1757775141494,0.21003583,115890.0,115880.0,1.14948]
[1757775143397,0.21003583,115890.0,115880.0,1.16664636]
[1757775144194,0.21003583,115890.0,115880.0,1.16695466]
[1757775144593,0.21003583,115890.0,115880.0,1.16671466]
[1757775144892,0.31138828,115890.0,115880.0,0.01947466]
[1757775145094,0.32691723,115890.0,115880.0,0.80587466]
[1757775145495,0.26480142,115890.0,115880.0,0.80587466]
[1757775146098,0.26480142,115890.0,115880.0,0.80387466]
[1757775146399,0.26480142,115890.0,115880.0,0.80394828]
[1757775146700,0.26480142,115890.0,115880.0,0.7864]
[1757775146900,0.26480142,115890.0,115880.0,0.80394828]
[1757775147503,0.51480142,115890.0,115880.0,0.80390828]
[1757775147701,0.51480142,115890.0,115880.0,0.80390916]
[1757775148003,0.57691723,115890.0,115880.0,0.80390916]
[1757775148802,0.57691723,115890.0,115880.0,0.78636]
[1757775149302,0.57691723,115890.0,115880.0,0.01753513]
[1757775149497,0.51480142,115890.0,115880.0,0.01753513]
[1757775149700,0.51480142,115890.0,115880.0,0.80389513]
[1757775150407,0.51480142,115890.0,115880.0,0.78636]
[1757775151107,0.51480142,115890.0,115880.0,0.80368717]
[1757775152205,0.51480142,115890.0,115880.0,0.78636]
[1757775152407,0.51480142,115890.0,115880.0,0.80410943]
[1757775154808,0.51480142,115890.0,115880.0,0.80395689]
[1757775155395,0.51480142,115890.0,115880.0,0.78636]
[1757775155708,0.51480142,115890.0,115880.0,0.80395689]
[1757775156398,0.51480142,115890.0,115880.0,0.80391178]
[1757775156906,0.26480142,115890.0,115880.0,0.80391178]
[1757775158508,0.06209652,115890.0,115880.0,0.78636]
[1757775158807,0.26480142,115890.0,115880.0,0.78636]
[1757775159908,0.31133725,115890.0,115880.0,0.78636]
[1757775161509,0.31133725,115890.0,115880.0,0.80385971]
[1757775162412,0.31133725,115890.0,115880.0,0.80362414]
[1757775162811,0.26480142,115890.0,115880.0,0.80349256]
[1757775164409,0.26480142,115890.0,115880.0,0.78636]
[1757775164610,0.26480142,115890.0,115880.0,0.80381727]
[1757775167014,0.26480142,115890.0,115880.0,0.80351535]
[1757775167414,0.26480142,115890.0,115880.0,0.78636]
[1757775168412,0.32691723,115890.0,115880.0,0.78636]
[1757775168615,0.32691723,115890.0,115880.0,0.80351535]
[1757775169613,0.32691723,115890.0,115880.0,0.80385894]
[1757775170513,0.32691723,115890.0,115880.0,0.78636]
[1757775170713,0.32691723,115890.0,115880.0,0.80385894]
[1757775171513,0.32691723,115890.0,115880.0,0.80377078]
[1757775173516,0.32691723,115890.0,115880.0,0.80411356]
[1757775174419,0.32695491,115890.0,115880.0,0.80411356]
[1757775174716,0.32695491,115890.0,115880.0,0.80366355]
[1757775176516,0.32695491,115890.0,115880.0,0.78636]
[1757775176718,0.32695491,115890.0,115880.0,0.80411776]
[1757775177815,0.32695491,115890.0,115880.0,0.78636]
[1757775178209,0.32695491,115890.0,115880.0,0.80354033]
[1757775178409,0.2648391,115890.0,115880.0,0.80354033]
[1757775179617,0.2648391,115890.0,115880.0,0.80388357]
[1757775179819,0.32695491,115890.0,115880.0,0.80388357]
[1757775180516,0.32695491,115890.0,115880.0,0.80377146]
[1757775182023,0.32695491,115890.0,115880.0,0.80394155]
[1757775183621,0.32695491,115890.0,115880.0,0.80391901]
[1757775185017,0.32695491,115890.0,115880.0,0.80377286]
[1757775185417,0.2648391,115890.0,115880.0,0.80377286]
[1757775186321,0.2648391,115890.0,115880.0,0.80387535]
[1757775187421,0.326976,115890.0,115880.0,0.80387535]
[1757775188624,0.326976,115890.0,115880.0,0.78636]
[1757775189322,0.326976,115890.0,115880.0,1.14716]
[1757775191525,0.326976,115890.0,115880.0,1.16471976]
[1757775191726,0.12423342,115890.0,115880.0,1.16471976]
[1757775191928,0.326976,115890.0,115880.0,1.16471976]
[1757775192727,0.326976,115890.0,115880.0,1.16438461]
[1757775193525,0.326976,115890.0,115880.0,1.14716]
[1757775193725,0.326976,115890.0,115880.0,1.16438461]
[1757775194525,0.326976,115890.0,115880.0,1.16463169]
[1757775196319,0.326976,115890.0,115880.0,1.14716]
[1757775197029,0.326976,115890.0,115880.0,1.16461438]
[1757775197528,0.326976,115890.0,115880.0,1.14716]
[1757775198736,0.326976,115890.0,115880.0,1.16445068]
[1757775200022,0.326976,115890.0,115880.0,1.14716]
[1757775200328,0.326976,115890.0,115880.0,1.16437513]
[1757775200530,0.326976,115890.0,115880.0,1.14716]
[1757775201432,0.326976,115890.0,115880.0,1.16437513]
[1757775203130,0.326976,115890.0,115880.0,1.14716]
[1757775203732,0.326976,115890.0,115880.0,1.1645448]
[1757775204933,0.326976,115890.0,115880.0,1.16441568]
[1757775206636,0.326976,115890.0,115880.0,1.14716]
[1757775206831,0.326976,115890.0,115880.0,1.1647158]
[1757775207831,0.326976,115890.0,115880.0,1.16480385]
[1757775208139,0.2648391,115890.0,115880.0,1.16480385]
[1757775208339,0.3269761,115890.0,115880.0,1.16480385]
[1757775208533,0.32694922,115890.0,115880.0,1.16480385]
[1757775209141,0.32694922,115890.0,115880.0,1.16429193]
[1757775210840,0.32694922,115890.0,115880.0,1.16465855]
[1757775212243,0.32694922,115890.0,115880.0,1.16443473]
[1757775212644,0.32694922,115890.0,115880.0,1.14716]
[1757775213144,0.34718354,115890.0,115880.0,1.16443473]
[1757775213847,0.34718354,115890.0,115880.0,1.16451323]
[1757775215046,0.34718354,115890.0,115880.0,1.14716]
[1757775215248,0.34718354,115890.0,115880.0,1.16452123]
[1757775215646,0.34718354,115890.0,115880.0,1.14716]
[1757775216342,0.34718354,115890.0,115880.0,1.16452123]
[1757775216853,0.34718354,115890.0,115880.0,1.16482726]
[1757775217750,0.28504654,115890.0,115880.0,1.16482726]
[1757775218353,0.34718831,115890.0,115880.0,1.16482726]
[1757775218651,0.34718831,115890.0,115880.0,1.14716]
[1757775221754,0.34718831,115890.0,115880.0,1.16448097]
[1757775222855,0.34718831,115890.0,115880.0,1.16481557]
[1757775224356,0.34718831,115890.0,115880.0,1.16489544]
[1757775224657,0.34718831,115890.0,115880.0,1.14716]
[1757775224857,0.34718831,115890.0,115880.0,1.16489544]
[1757775227059,0.34718831,115890.0,115880.0,1.16481486]
[1757775228856,0.34718831,115890.0,115880.0,1.16445044]
[1757775229654,0.28504654,115890.0,115880.0,1.16445044]
[1757775230755,0.28504654,115890.0,115880.0,1.16484095]
[1757775231363,0.28499508,115890.0,115880.0,1.14716]
[1757775231758,0.28499508,115890.0,115880.0,1.16438357]
[1757775233762,0.28499508,115890.0,115880.0,1.16466743]
[1757775234965,0.28499508,115890.0,115880.0,1.14716]
[1757775235366,0.331601,115890.0,115880.0,1.14716]
[1757775236365,0.33158804,115890.0,115880.0,1.14716]
[1757775236765,0.28498212,115890.0,115880.0,1.16457537]
[1757775237364,0.28498212,115890.0,115880.0,1.14716]
[1757775237566,0.28498212,115890.0,115880.0,1.16460011]
[1757775237765,0.34712389,115890.0,115880.0,1.16460011]
[1757775239467,0.34712389,115890.0,115880.0,1.14716]
[1757775239666,0.34712389,115890.0,115880.0,1.16434572]
[1757775240869,0.34712389,115890.0,115880.0,1.14716]
[1757775241967,0.34712389,115890.0,115880.0,1.16468962]
[1757775242368,0.34712389,115890.0,115880.0,1.16444303]
[1757775242874,0.34712389,115890.0,115880.0,1.14716]
[1757775243766,0.34712389,115890.0,115880.0,1.16444303]
[1757775244968,0.34712389,115890.0,115880.0,1.14716]
[1757775245266,0.34712389,115890.0,115880.0,1.16466842]
[1757775246367,0.34712389,115890.0,115880.0,1.14716]
[1757775246968,0.34712389,115890.0,115880.0,1.16475883]
[1757775248764,0.34712389,115890.0,115880.0,1.14716]
[1757775248968,0.34712389,115890.0,115880.0,1.16456271]
[1757775249570,0.34712389,115890.0,115880.0,1.16332271]
[1757775251872,0.34712389,115890.0,115880.0,1.16353734]
[1757775252972,0.34712389,115890.0,115880.0,1.16319364]
[1757775253173,0.34712389,115890.0,115880.0,0.80239364]
[1757775253576,0.34712389,115890.0,115880.0,0.78512]
[1757775254573,0.34712389,115890.0,115880.0,0.80239364]
[1757775254874,0.34712389,115890.0,115880.0,0.80293897]
[1757775255669,0.34712389,115890.0,115880.0,0.01781897]
[1757775255874,0.34712389,115890.0,115880.0,0.80275024]
[1757775256367,0.3471223,115890.0,115880.0,0.80275024]
[1757775257271,0.28498212,115890.0,115880.0,0.80275024]
[1757775257471,0.34712227,115890.0,115880.0,0.80257085]
[1757775258277,0.28498212,115890.0,115880.0,0.80257085]
[1757775258476,0.34712224,115890.0,115880.0,0.80218741]
[1757775258977,0.34712224,115890.0,115880.0,0.785]
[1757775259977,0.34712224,115890.0,115880.0,0.80261817]
[1757775260372,0.34712224,115890.0,115880.0,0.785]
[1757775260575,0.34712224,115890.0,115880.0,0.80254114]
[1757775261382,0.28498212,115890.0,115880.0,0.785]
[1757775262782,0.28498212,115890.0,115870.0,0.3608]
[1757775263080,0.29984937,115880.0,115870.0,0.3608]
[1757775263280,0.32428755,115880.0,115870.0,1.14568]
[1757775264077,0.12155793,115880.0,115870.0,1.14568]
[1757775264284,0.32428755,115880.0,115870.0,1.14568]
[1757775264884,0.33281972,115880.0,115870.0,0.001]
[1757775265086,0.39495947,115880.0,115870.0,0.78588]
[1757775266086,0.39495947,115880.0,115870.0,0.78688]
[1757775267390,0.33539972,115880.0,115870.0,0.7868]
[1757775269386,0.39753947,115880.0,115870.0,0.7868]
[1757775273189,0.33539972,115880.0,115870.0,0.7868]
[1757775273389,0.33539972,115880.0,115870.0,0.80400832]
[1757775274892,0.33539972,115880.0,115870.0,0.80396832]
[1757775275191,0.33539972,115880.0,115870.0,0.80417693]
[1757775275392,0.39753947,115880.0,115870.0,0.80417693]
[1757775275893,0.39753947,115880.0,115870.0,0.78676]
[1757775276393,0.39753947,115880.0,115870.0,0.80395478]
[1757775277094,0.39753947,115880.0,115870.0,0.78676]
[1757775277395,0.39753947,115880.0,115870.0,0.80451693]
[1757775278394,0.39753947,115880.0,115870.0,0.80399694]
[1757775278993,0.19480985,115880.0,115870.0,0.80399694]
[1757775279292,0.39753947,115880.0,115870.0,0.80399694]
[1757775279593,0.39753947,115880.0,115870.0,0.80397962]
[1757775280383,0.39753947,115880.0,115870.0,0.78676]
[1757775280890,0.39753947,115880.0,115870.0,0.80397962]
[1757775281194,0.33539972,115880.0,115870.0,0.80397962]
[1757775281895,0.33539972,115880.0,115870.0,0.78676]
[1757775282095,0.33539972,115880.0,115870.0,0.80458772]
[1757775282996,0.33539972,115880.0,115870.0,0.78676]
[1757775283192,0.33539972,115880.0,115870.0,0.80436506]
[1757775284094,0.33539972,115880.0,115870.0,0.80440668]
[1757775284496,0.33539972,115880.0,115870.0,0.78676]
[1757775284691,0.33539972,115880.0,115870.0,0.80440668]
[1757775284895,0.33539972,115880.0,115870.0,0.78676]
[1757775285694,0.33539972,115880.0,115870.0,0.80440668]
[1757775285997,0.3819857,115880.0,115870.0,1.16520668]
[1757775286699,0.3819857,115880.0,115870.0,1.14756]
[1757775286893,0.3819857,115880.0,115870.0,1.16517038]
[1757775287091,0.3819857,115880.0,115870.0,1.14756]
[1757775288000,0.3819857,115880.0,115870.0,1.16517038]
[1757775288497,0.33539972,115880.0,115870.0,1.16517038]
[1757775288686,0.33539972,115880.0,115870.0,1.14756]
[1757775288885,0.33539972,115880.0,115870.0,1.16473574]
[1757775289701,0.38198995,115880.0,115870.0,1.16473574]
[1757775289887,0.38198995,115880.0,115870.0,1.16488451]
[1757775290599,0.38198995,115880.0,115870.0,1.1648672]
[1757775291597,0.38198995,115880.0,115870.0,1.16514735]
[1757775293994,0.38198995,115880.0,115870.0,1.16477639]
[1757775294394,0.28062514,115880.0,115870.0,1.2661412]
[1757775294601,0.38198995,115880.0,115870.0,1.2661412]
[1757775295001,0.38198995,115880.0,115870.0,1.26637374]
[1757775295202,0.33539972,115880.0,115870.0,1.26637374]
[1757775295501,0.38198995,115880.0,115870.0,1.26637374]
[1757775296196,0.38198995,115880.0,115870.0,1.14756]
[1757775296398,0.38198995,115880.0,115870.0,1.16532308]
[1757775296795,0.38198995,115880.0,115870.0,0.38056308]
[1757775296999,0.38198995,115880.0,115870.0,1.14736]
[1757775297196,0.38198995,115880.0,115870.0,1.16512308]
[1757775297802,0.38198995,115880.0,115870.0,1.16486113]
[1757775298602,0.28062485,115880.0,115870.0,1.16486113]
[1757775299505,0.28062485,115880.0,115870.0,1.16502151]
[1757775300306,0.28062485,115880.0,115870.0,0.38046151]
[1757775300506,0.28062485,115880.0,115870.0,1.16498151]
[1757775300805,0.28062485,115880.0,115870.0,1.16480744]
[1757775301106,0.28062485,115880.0,115870.0,1.14732]
[1757775301309,0.28062485,115880.0,115870.0,1.16480744]
[1757775302003,0.28062485,115880.0,115870.0,1.16488164]
[1757775303010,0.28062485,115880.0,115870.0,1.14732]
[1757775303308,0.28062485,115880.0,115870.0,1.1651104]
[1757775304104,0.28062485,115880.0,115870.0,1.1650704]
[1757775304305,0.23403462,115880.0,115870.0,1.16486933]
[1757775306011,0.23403462,115880.0,115870.0,1.14728]
[1757775306310,0.1326701,115880.0,115870.0,1.14728]
[1757775306613,0.23403462,115880.0,115870.0,1.16473184]
[1757775307103,0.23403462,115880.0,115870.0,1.14728]
[1757775307310,0.23403462,115880.0,115870.0,1.16490932]
[1757775307810,0.23403462,115880.0,115870.0,1.16462488]
[1757775309011,0.23403462,115880.0,115870.0,0.3628]
[1757775309212,0.23403462,115880.0,115870.0,1.16469561]
[1757775312015,0.23403462,115880.0,115870.0,1.14724]
[1757775312209,0.23403462,115880.0,115870.0,1.1647818]
[1757775313310,0.23403462,115880.0,115870.0,1.16465369]
[1757775314517,0.23403462,115880.0,115870.0,1.14724]
[1757775314714,0.23403462,115880.0,115870.0,1.16499776]
[1757775315015,0.23403462,115880.0,115870.0,1.14724]
[1757775315414,0.29617437,115880.0,115870.0,1.14724]
[1757775315817,0.29617437,115880.0,115870.0,1.16499776]
[1757775316118,0.29617437,115880.0,115870.0,1.16491776]
[1757775317118,0.29617437,115880.0,115870.0,1.16440924]
[1757775317318,0.29617437,115880.0,115870.0,0.38004924]
[1757775317818,0.29617437,115880.0,115870.0,1.14716]
[1757775318116,0.23403462,115880.0,115870.0,1.16440924]
[1757775319318,0.23403462,115880.0,115870.0,1.16485754]
[1757775320014,0.23403462,115880.0,115870.0,1.14716]
[1757775320317,0.23403462,115880.0,115870.0,1.16485754]
[1757775321017,0.23403462,115880.0,115870.0,1.14716]
[1757775321217,0.23403462,115880.0,115870.0,1.16442438]
[1757775321415,0.28063009,115880.0,115870.0,0.3628]
[1757775321620,0.28063009,115880.0,115870.0,1.16438438]
[1757775322321,0.28063009,115880.0,115870.0,1.16466047]
[1757775323414,0.28063009,115880.0,115870.0,1.16433452]
[1757775324020,0.54617437,115880.0,115870.0,0.002]
[1757775324421,0.54617437,115880.0,115870.0,0.01921452]
[1757775325322,0.54617437,115880.0,115870.0,0.01942784]
[1757775327013,0.54617437,115880.0,115870.0,0.002]
[1757775327524,0.54617437,115880.0,115870.0,0.01942815]
[1757775328421,0.09404575,115880.0,115870.0,0.93289218]
[1757775328621,0.01372,115880.0,115870.0,0.73152766]
[1757775328921,0.034154,115880.0,115870.0,0.73152766]
[1757775329112,0.034154,115880.0,115870.0,0.85152766]
[1757775329918,0.03362459,115880.0,115870.0,0.93778446]
[1757775330325,0.03362459,115880.0,115870.0,0.81778446]
[1757775330625,0.03362459,115880.0,115870.0,1.07778446]
[1757775330926,0.03382197,115880.0,115870.0,1.07778446]
[1757775331124,0.03382197,115880.0,115870.0,0.99152766]
[1757775331830,0.0340844,115880.0,115870.0,0.99152766]
[1757775333120,0.01372,115880.0,115870.0,0.99152766]
[1757775333319,0.03372408,115880.0,115870.0,0.99152766]
[1757775333523,0.01372,115880.0,115870.0,0.99152766]
[1757775334631,0.03372408,115880.0,115870.0,0.99152766]
[1757775335022,0.01372,115880.0,115870.0,0.73152766]
[1757775335330,0.03419286,115880.0,115870.0,0.73152766]
[1757775335926,0.01372,115880.0,115870.0,0.73152766]
[1757775336125,0.03419623,115880.0,115870.0,0.73152766]
[1757775337032,0.03365472,115880.0,115870.0,0.73152766]
[1757775337240,0.01372,115880.0,115870.0,0.73152766]
[1757775339143,0.03365472,115880.0,115870.0,0.73152766]
[1757775339440,0.03365472,115880.0,115870.0,0.48152766]
[1757775339842,0.03363691,115880.0,115870.0,0.48152766]
[1757775341441,0.03363691,115880.0,115870.0,0.84232766]
[1757775341643,0.0336461,115880.0,115870.0,0.84232766]
[1757775342152,0.01372,115880.0,115870.0,0.84232766]
[1757775342842,0.0336461,115880.0,115870.0,0.84232766]
[1757775343246,0.01372,115880.0,115870.0,0.84232766]
[1757775344535,0.0338611,115880.0,115870.0,0.84232766]
[1757775345043,0.01372,115880.0,115870.0,0.84232766]
[1757775345648,0.01372,115880.0,115870.0,1.62628766]
[1757775345947,0.03417766,115880.0,115870.0,1.62628766]
[1757775346251,0.03417766,115880.0,115870.0,1.52492314]
[1757775346541,0.03417766,115880.0,115870.0,1.62628766]
[1757775347047,0.03371722,115880.0,115870.0,1.62628766]